Workbook

Sheet DATA
B3: الإجمالي | D3: =Spell_Number("AR",J3,"جنية","قرش") ->  | G3: =SUM(G6:G601) -> 67000 | H3: =SUM(H6:H601) -> 27000 | I3: =SUM(I6:I601) -> 24000 | J3: =J601 -> 16000
G4: =(H3/G3) -> 0.4029850746
B5: م | C5: التاريخ | D5: رقم الشيك | E5: المستفيد | F5: البيان | G5: وارد | H5: منصرف | I5: لم يصرف | J5: الرصيد
B6: =IF(F6="","",SUBTOTAL(3,F$6:F6)) -> 1 | C6: 2021-01-01 | F6: رصيد افتتاحي | G6: 1000 | J6: =G6-(H6+I6) -> 1000
B7: =IF(F7="","",SUBTOTAL(3,F$6:F7)) -> 2 | C7: 2021-02-01 | D7: 1 | E7: علي | F7: هديه | G7: 5000 | J7: =(J6+G7)-(H7+I7) -> 6000
B8: =IF(F8="","",SUBTOTAL(3,F$6:F8)) -> 3 | C8: 2021-03-03 | D8: 2 | E8: احمد | F8: رسوم | H8: 1000 | J8: =(J7+G8)-(H8+I8) -> 5000
B9: =IF(F9="","",SUBTOTAL(3,F$6:F9)) -> 4 | C9: 2021-06-06 | D9: 3 | E9: حسام | F9: ضريبه | H9: 500 | J9: 4500
B10: =IF(F10="","",SUBTOTAL(3,F$6:F10)) -> 5 | C10: 2021-08-08 | D10: 5 | E10: علي | F10: هديه | G10: 6000 | J10: 10500
B11: =IF(F11="","",SUBTOTAL(3,F$6:F11)) -> 6 | C11: 2021-09-01 | D11: 6 | E11: علي | F11: مرجوع | H11: 3000 | J11: 7500
B12: =IF(F12="","",SUBTOTAL(3,F$6:F12)) -> 7 | C12: 2021-10-10 | D12: 7 | E12: حسام | F12: تجربه | I12: 4000 | J12: 3500
B13: =IF(F13="","",SUBTOTAL(3,F$6:F13)) -> 8 | C13: 2021-01-02 | D13: 1 | E13: علي | F13: هديه | G13: 5000 | J13: 8500
B14: =IF(F14="","",SUBTOTAL(3,F$6:F14)) -> 9 | C14: 2021-02-02 | D14: 2 | E14: احمد | F14: رسوم | H14: 1000 | J14: 7500
B15: =IF(F15="","",SUBTOTAL(3,F$6:F15)) -> 10 | C15: 2021-03-04 | D15: 3 | E15: حسام | F15: ضريبه | H15: 500 | J15: 7000
B16: =IF(F16="","",SUBTOTAL(3,F$6:F16)) -> 11 | C16: 2021-06-07 | D16: 5 | E16: علي | F16: هديه | G16: 6000 | J16: 13000
B17: =IF(F17="","",SUBTOTAL(3,F$6:F17)) -> 12 | C17: 2021-08-09 | D17: 6 | E17: علي | F17: مرجوع | H17: 3000 | J17: 10000
B18: =IF(F18="","",SUBTOTAL(3,F$6:F18)) -> 13 | C18: 2021-09-02 | D18: 7 | E18: حسام | F18: تجربه | I18: 4000 | J18: 6000
B19: =IF(F19="","",SUBTOTAL(3,F$6:F19)) -> 14 | C19: 2021-10-11 | D19: 1 | E19: علي | F19: هديه | G19: 5000 | J19: 11000
B20: =IF(F20="","",SUBTOTAL(3,F$6:F20)) -> 15 | C20: 2021-01-03 | D20: 2 | E20: احمد | F20: رسوم | H20: 1000 | J20: 10000
B21: =IF(F21="","",SUBTOTAL(3,F$6:F21)) -> 16 | C21: 2021-02-03 | D21: 3 | E21: حسام | F21: ضريبه | H21: 500 | J21: 9500
B22: =IF(F22="","",SUBTOTAL(3,F$6:F22)) -> 17 | C22: 2021-03-05 | D22: 5 | E22: علي | F22: هديه | G22: 6000 | J22: 15500
B23: =IF(F23="","",SUBTOTAL(3,F$6:F23)) -> 18 | C23: 2021-06-08 | D23: 6 | E23: علي | F23: مرجوع | H23: 3000 | J23: 12500
B24: =IF(F24="","",SUBTOTAL(3,F$6:F24)) -> 19 | C24: 2021-08-10 | D24: 7 | E24: حسام | F24: تجربه | I24: 4000 | J24: 8500
B25: =IF(F25="","",SUBTOTAL(3,F$6:F25)) -> 20 | C25: 2021-09-03 | D25: 1 | E25: علي | F25: هديه | G25: 5000 | J25: 13500
B26: =IF(F26="","",SUBTOTAL(3,F$6:F26)) -> 21 | C26: 2021-10-12 | D26: 2 | E26: احمد | F26: رسوم | H26: 1000 | J26: 12500
B27: =IF(F27="","",SUBTOTAL(3,F$6:F27)) -> 22 | C27: 2021-01-04 | D27: 3 | E27: حسام | F27: ضريبه | H27: 500 | J27: 12000
B28: =IF(F28="","",SUBTOTAL(3,F$6:F28)) -> 23 | C28: 2021-02-04 | D28: 5 | E28: علي | F28: هديه | G28: 6000 | J28: 18000
B29: =IF(F29="","",SUBTOTAL(3,F$6:F29)) -> 24 | C29: 2021-03-06 | D29: 6 | E29: علي | F29: مرجوع | H29: 3000 | J29: 15000
B30: =IF(F30="","",SUBTOTAL(3,F$6:F30)) -> 25 | C30: 2021-06-09 | D30: 7 | E30: حسام | F30: تجربه | I30: 4000 | J30: 11000
B31: =IF(F31="","",SUBTOTAL(3,F$6:F31)) -> 26 | C31: 2021-08-11 | D31: 1 | E31: علي | F31: هديه | G31: 5000 | J31: 16000
B32: =IF(F32="","",SUBTOTAL(3,F$6:F32)) -> 27 | C32: 2021-09-04 | D32: 2 | E32: احمد | F32: رسوم | H32: 1000 | J32: 15000
B33: =IF(F33="","",SUBTOTAL(3,F$6:F33)) -> 28 | C33: 2021-10-13 | D33: 3 | E33: حسام | F33: ضريبه | H33: 500 | J33: 14500
B34: =IF(F34="","",SUBTOTAL(3,F$6:F34)) -> 29 | C34: 2021-01-05 | D34: 5 | E34: علي | F34: هديه | G34: 6000 | J34: 20500
B35: =IF(F35="","",SUBTOTAL(3,F$6:F35)) -> 30 | C35: 2021-02-05 | D35: 6 | E35: علي | F35: مرجوع | H35: 3000 | J35: 17500
B36: =IF(F36="","",SUBTOTAL(3,F$6:F36)) -> 31 | C36: 2021-03-07 | D36: 7 | E36: حسام | F36: تجربه | I36: 4000 | J36: 13500
B37: =IF(F37="","",SUBTOTAL(3,F$6:F37)) -> 32 | C37: 2021-06-10 | D37: 1 | E37: علي | F37: هديه | G37: 5000 | J37: 18500
B38: =IF(F38="","",SUBTOTAL(3,F$6:F38)) -> 33 | C38: 2021-08-12 | D38: 2 | E38: احمد | F38: رسوم | H38: 1000 | J38: 17500
B39: =IF(F39="","",SUBTOTAL(3,F$6:F39)) -> 34 | C39: 2021-09-05 | D39: 3 | E39: حسام | F39: ضريبه | H39: 500 | J39: 17000
B40: =IF(F40="","",SUBTOTAL(3,F$6:F40)) -> 35 | C40: 2021-10-14 | D40: 5 | E40: علي | F40: هديه | G40: 6000 | J40: 23000
B41: =IF(F41="","",SUBTOTAL(3,F$6:F41)) -> 36 | C41: 2021-01-06 | D41: 6 | E41: علي | F41: مرجوع | H41: 3000 | J41: 20000
B42: =IF(F42="","",SUBTOTAL(3,F$6:F42)) -> 37 | C42: 2021-02-06 | D42: 7 | E42: حسام | F42: تجربه | I42: 4000 | J42: 16000
B43: =IF(F43="","",SUBTOTAL(3,F$6:F43)) ->  | J43: 16000
B44: =IF(F44="","",SUBTOTAL(3,F$6:F44)) ->  | J44: 16000
B45: =IF(F45="","",SUBTOTAL(3,F$6:F45)) ->  | J45: 16000
B46: =IF(F46="","",SUBTOTAL(3,F$6:F46)) ->  | J46: 16000
B47: =IF(F47="","",SUBTOTAL(3,F$6:F47)) ->  | J47: 16000
B48: =IF(F48="","",SUBTOTAL(3,F$6:F48)) ->  | J48: 16000
B49: =IF(F49="","",SUBTOTAL(3,F$6:F49)) ->  | J49: 16000
B50: =IF(F50="","",SUBTOTAL(3,F$6:F50)) ->  | J50: 16000
B51: =IF(F51="","",SUBTOTAL(3,F$6:F51)) ->  | J51: 16000
B52: =IF(F52="","",SUBTOTAL(3,F$6:F52)) ->  | J52: 16000
B53: =IF(F53="","",SUBTOTAL(3,F$6:F53)) ->  | J53: 16000
B54: =IF(F54="","",SUBTOTAL(3,F$6:F54)) ->  | J54: 16000
B55: =IF(F55="","",SUBTOTAL(3,F$6:F55)) ->  | J55: 16000
B56: =IF(F56="","",SUBTOTAL(3,F$6:F56)) ->  | J56: 16000
B57: =IF(F57="","",SUBTOTAL(3,F$6:F57)) ->  | J57: 16000
B58: =IF(F58="","",SUBTOTAL(3,F$6:F58)) ->  | J58: 16000
B59: =IF(F59="","",SUBTOTAL(3,F$6:F59)) ->  | J59: 16000
B60: =IF(F60="","",SUBTOTAL(3,F$6:F60)) ->  | J60: 16000
B61: =IF(F61="","",SUBTOTAL(3,F$6:F61)) ->  | J61: 16000
B62: =IF(F62="","",SUBTOTAL(3,F$6:F62)) ->  | J62: 16000
B63: =IF(F63="","",SUBTOTAL(3,F$6:F63)) ->  | J63: 16000
B64: =IF(F64="","",SUBTOTAL(3,F$6:F64)) ->  | J64: 16000
B65: =IF(F65="","",SUBTOTAL(3,F$6:F65)) ->  | J65: 16000
B66: =IF(F66="","",SUBTOTAL(3,F$6:F66)) ->  | J66: 16000
B67: =IF(F67="","",SUBTOTAL(3,F$6:F67)) ->  | J67: 16000
B68: =IF(F68="","",SUBTOTAL(3,F$6:F68)) ->  | J68: 16000
B69: =IF(F69="","",SUBTOTAL(3,F$6:F69)) ->  | J69: 16000
B70: =IF(F70="","",SUBTOTAL(3,F$6:F70)) ->  | J70: 16000
B71: =IF(F71="","",SUBTOTAL(3,F$6:F71)) ->  | J71: 16000
B72: =IF(F72="","",SUBTOTAL(3,F$6:F72)) ->  | J72: =(J71+G72)-(H72+I72) -> 16000
B73: =IF(F73="","",SUBTOTAL(3,F$6:F73)) ->  | J73: 16000
B74: =IF(F74="","",SUBTOTAL(3,F$6:F74)) ->  | J74: 16000
B75: =IF(F75="","",SUBTOTAL(3,F$6:F75)) ->  | J75: 16000
B76: =IF(F76="","",SUBTOTAL(3,F$6:F76)) ->  | J76: 16000
B77: =IF(F77="","",SUBTOTAL(3,F$6:F77)) ->  | J77: 16000
B78: =IF(F78="","",SUBTOTAL(3,F$6:F78)) ->  | J78: 16000
B79: =IF(F79="","",SUBTOTAL(3,F$6:F79)) ->  | J79: 16000
B80: =IF(F80="","",SUBTOTAL(3,F$6:F80)) ->  | J80: 16000
B81: =IF(F81="","",SUBTOTAL(3,F$6:F81)) ->  | J81: 16000
B82: =IF(F82="","",SUBTOTAL(3,F$6:F82)) ->  | J82: 16000
B83: =IF(F83="","",SUBTOTAL(3,F$6:F83)) ->  | J83: 16000
B84: =IF(F84="","",SUBTOTAL(3,F$6:F84)) ->  | J84: 16000
B85: =IF(F85="","",SUBTOTAL(3,F$6:F85)) ->  | J85: 16000
B86: =IF(F86="","",SUBTOTAL(3,F$6:F86)) ->  | J86: 16000
B87: =IF(F87="","",SUBTOTAL(3,F$6:F87)) ->  | J87: 16000
B88: =IF(F88="","",SUBTOTAL(3,F$6:F88)) ->  | J88: 16000
B89: =IF(F89="","",SUBTOTAL(3,F$6:F89)) ->  | J89: 16000
B90: =IF(F90="","",SUBTOTAL(3,F$6:F90)) ->  | J90: 16000
B91: =IF(F91="","",SUBTOTAL(3,F$6:F91)) ->  | J91: 16000
B92: =IF(F92="","",SUBTOTAL(3,F$6:F92)) ->  | J92: 16000
B93: =IF(F93="","",SUBTOTAL(3,F$6:F93)) ->  | J93: 16000
B94: =IF(F94="","",SUBTOTAL(3,F$6:F94)) ->  | J94: 16000
B95: =IF(F95="","",SUBTOTAL(3,F$6:F95)) ->  | J95: 16000
B96: =IF(F96="","",SUBTOTAL(3,F$6:F96)) ->  | J96: 16000
B97: =IF(F97="","",SUBTOTAL(3,F$6:F97)) ->  | J97: 16000
B98: =IF(F98="","",SUBTOTAL(3,F$6:F98)) ->  | J98: 16000
B99: =IF(F99="","",SUBTOTAL(3,F$6:F99)) ->  | J99: 16000
B100: =IF(F100="","",SUBTOTAL(3,F$6:F100)) ->  | J100: 16000
B101: =IF(F101="","",SUBTOTAL(3,F$6:F101)) ->  | J101: 16000
B102: =IF(F102="","",SUBTOTAL(3,F$6:F102)) ->  | J102: 16000
B103: =IF(F103="","",SUBTOTAL(3,F$6:F103)) ->  | J103: 16000
B104: =IF(F104="","",SUBTOTAL(3,F$6:F104)) ->  | J104: 16000
B105: =IF(F105="","",SUBTOTAL(3,F$6:F105)) ->  | J105: 16000
B106: =IF(F106="","",SUBTOTAL(3,F$6:F106)) ->  | J106: 16000
B107: =IF(F107="","",SUBTOTAL(3,F$6:F107)) ->  | J107: 16000
B108: =IF(F108="","",SUBTOTAL(3,F$6:F108)) ->  | J108: 16000
B109: =IF(F109="","",SUBTOTAL(3,F$6:F109)) ->  | J109: 16000
B110: =IF(F110="","",SUBTOTAL(3,F$6:F110)) ->  | J110: 16000
B111: =IF(F111="","",SUBTOTAL(3,F$6:F111)) ->  | J111: 16000
B112: =IF(F112="","",SUBTOTAL(3,F$6:F112)) ->  | J112: 16000
B113: =IF(F113="","",SUBTOTAL(3,F$6:F113)) ->  | J113: 16000
B114: =IF(F114="","",SUBTOTAL(3,F$6:F114)) ->  | J114: 16000
B115: =IF(F115="","",SUBTOTAL(3,F$6:F115)) ->  | J115: 16000
B116: =IF(F116="","",SUBTOTAL(3,F$6:F116)) ->  | J116: 16000
B117: =IF(F117="","",SUBTOTAL(3,F$6:F117)) ->  | J117: 16000
B118: =IF(F118="","",SUBTOTAL(3,F$6:F118)) ->  | J118: 16000
B119: =IF(F119="","",SUBTOTAL(3,F$6:F119)) ->  | J119: 16000
B120: =IF(F120="","",SUBTOTAL(3,F$6:F120)) ->  | J120: 16000
B121: =IF(F121="","",SUBTOTAL(3,F$6:F121)) ->  | J121: 16000
B122: =IF(F122="","",SUBTOTAL(3,F$6:F122)) ->  | J122: 16000
B123: =IF(F123="","",SUBTOTAL(3,F$6:F123)) ->  | J123: 16000
B124: =IF(F124="","",SUBTOTAL(3,F$6:F124)) ->  | J124: 16000
B125: =IF(F125="","",SUBTOTAL(3,F$6:F125)) ->  | J125: 16000
B126: =IF(F126="","",SUBTOTAL(3,F$6:F126)) ->  | J126: 16000
B127: =IF(F127="","",SUBTOTAL(3,F$6:F127)) ->  | J127: 16000
B128: =IF(F128="","",SUBTOTAL(3,F$6:F128)) ->  | J128: 16000
B129: =IF(F129="","",SUBTOTAL(3,F$6:F129)) ->  | J129: 16000
B130: =IF(F130="","",SUBTOTAL(3,F$6:F130)) ->  | J130: 16000
B131: =IF(F131="","",SUBTOTAL(3,F$6:F131)) ->  | J131: 16000
B132: =IF(F132="","",SUBTOTAL(3,F$6:F132)) ->  | J132: 16000
B133: =IF(F133="","",SUBTOTAL(3,F$6:F133)) ->  | J133: 16000
B134: =IF(F134="","",SUBTOTAL(3,F$6:F134)) ->  | J134: 16000
B135: =IF(F135="","",SUBTOTAL(3,F$6:F135)) ->  | J135: 16000
B136: =IF(F136="","",SUBTOTAL(3,F$6:F136)) ->  | J136: =(J135+G136)-(H136+I136) -> 16000
B137: =IF(F137="","",SUBTOTAL(3,F$6:F137)) ->  | J137: 16000
B138: =IF(F138="","",SUBTOTAL(3,F$6:F138)) ->  | J138: 16000
B139: =IF(F139="","",SUBTOTAL(3,F$6:F139)) ->  | J139: 16000
B140: =IF(F140="","",SUBTOTAL(3,F$6:F140)) ->  | J140: 16000
B141: =IF(F141="","",SUBTOTAL(3,F$6:F141)) ->  | J141: 16000
B142: =IF(F142="","",SUBTOTAL(3,F$6:F142)) ->  | J142: 16000
B143: =IF(F143="","",SUBTOTAL(3,F$6:F143)) ->  | J143: 16000
B144: =IF(F144="","",SUBTOTAL(3,F$6:F144)) ->  | J144: 16000
B145: =IF(F145="","",SUBTOTAL(3,F$6:F145)) ->  | J145: 16000
B146: =IF(F146="","",SUBTOTAL(3,F$6:F146)) ->  | J146: 16000
B147: =IF(F147="","",SUBTOTAL(3,F$6:F147)) ->  | J147: 16000
B148: =IF(F148="","",SUBTOTAL(3,F$6:F148)) ->  | J148: 16000
B149: =IF(F149="","",SUBTOTAL(3,F$6:F149)) ->  | J149: 16000
B150: =IF(F150="","",SUBTOTAL(3,F$6:F150)) ->  | J150: 16000
B151: =IF(F151="","",SUBTOTAL(3,F$6:F151)) ->  | J151: 16000
B152: =IF(F152="","",SUBTOTAL(3,F$6:F152)) ->  | J152: 16000
B153: =IF(F153="","",SUBTOTAL(3,F$6:F153)) ->  | J153: 16000
B154: =IF(F154="","",SUBTOTAL(3,F$6:F154)) ->  | J154: 16000
B155: =IF(F155="","",SUBTOTAL(3,F$6:F155)) ->  | J155: 16000
B156: =IF(F156="","",SUBTOTAL(3,F$6:F156)) ->  | J156: 16000
B157: =IF(F157="","",SUBTOTAL(3,F$6:F157)) ->  | J157: 16000
B158: =IF(F158="","",SUBTOTAL(3,F$6:F158)) ->  | J158: 16000
B159: =IF(F159="","",SUBTOTAL(3,F$6:F159)) ->  | J159: 16000
B160: =IF(F160="","",SUBTOTAL(3,F$6:F160)) ->  | J160: 16000
B161: =IF(F161="","",SUBTOTAL(3,F$6:F161)) ->  | J161: 16000
B162: =IF(F162="","",SUBTOTAL(3,F$6:F162)) ->  | J162: 16000
B163: =IF(F163="","",SUBTOTAL(3,F$6:F163)) ->  | J163: 16000
B164: =IF(F164="","",SUBTOTAL(3,F$6:F164)) ->  | J164: 16000
B165: =IF(F165="","",SUBTOTAL(3,F$6:F165)) ->  | J165: 16000
B166: =IF(F166="","",SUBTOTAL(3,F$6:F166)) ->  | J166: 16000
B167: =IF(F167="","",SUBTOTAL(3,F$6:F167)) ->  | J167: 16000
B168: =IF(F168="","",SUBTOTAL(3,F$6:F168)) ->  | J168: 16000
B169: =IF(F169="","",SUBTOTAL(3,F$6:F169)) ->  | J169: 16000
B170: =IF(F170="","",SUBTOTAL(3,F$6:F170)) ->  | J170: 16000
B171: =IF(F171="","",SUBTOTAL(3,F$6:F171)) ->  | J171: 16000
B172: =IF(F172="","",SUBTOTAL(3,F$6:F172)) ->  | J172: 16000
B173: =IF(F173="","",SUBTOTAL(3,F$6:F173)) ->  | J173: 16000
B174: =IF(F174="","",SUBTOTAL(3,F$6:F174)) ->  | J174: 16000
B175: =IF(F175="","",SUBTOTAL(3,F$6:F175)) ->  | J175: 16000
B176: =IF(F176="","",SUBTOTAL(3,F$6:F176)) ->  | J176: 16000
B177: =IF(F177="","",SUBTOTAL(3,F$6:F177)) ->  | J177: 16000
B178: =IF(F178="","",SUBTOTAL(3,F$6:F178)) ->  | J178: 16000
B179: =IF(F179="","",SUBTOTAL(3,F$6:F179)) ->  | J179: 16000
B180: =IF(F180="","",SUBTOTAL(3,F$6:F180)) ->  | J180: 16000
B181: =IF(F181="","",SUBTOTAL(3,F$6:F181)) ->  | J181: 16000
B182: =IF(F182="","",SUBTOTAL(3,F$6:F182)) ->  | J182: 16000
B183: =IF(F183="","",SUBTOTAL(3,F$6:F183)) ->  | J183: 16000
B184: =IF(F184="","",SUBTOTAL(3,F$6:F184)) ->  | J184: 16000
B185: =IF(F185="","",SUBTOTAL(3,F$6:F185)) ->  | J185: 16000
B186: =IF(F186="","",SUBTOTAL(3,F$6:F186)) ->  | J186: 16000
B187: =IF(F187="","",SUBTOTAL(3,F$6:F187)) ->  | J187: 16000
B188: =IF(F188="","",SUBTOTAL(3,F$6:F188)) ->  | J188: 16000
B189: =IF(F189="","",SUBTOTAL(3,F$6:F189)) ->  | J189: 16000
B190: =IF(F190="","",SUBTOTAL(3,F$6:F190)) ->  | J190: 16000
B191: =IF(F191="","",SUBTOTAL(3,F$6:F191)) ->  | J191: 16000
B192: =IF(F192="","",SUBTOTAL(3,F$6:F192)) ->  | J192: 16000
B193: =IF(F193="","",SUBTOTAL(3,F$6:F193)) ->  | J193: 16000
B194: =IF(F194="","",SUBTOTAL(3,F$6:F194)) ->  | J194: 16000
B195: =IF(F195="","",SUBTOTAL(3,F$6:F195)) ->  | J195: 16000
B196: =IF(F196="","",SUBTOTAL(3,F$6:F196)) ->  | J196: 16000
B197: =IF(F197="","",SUBTOTAL(3,F$6:F197)) ->  | J197: 16000
B198: =IF(F198="","",SUBTOTAL(3,F$6:F198)) ->  | J198: 16000
B199: =IF(F199="","",SUBTOTAL(3,F$6:F199)) ->  | J199: 16000
B200: =IF(F200="","",SUBTOTAL(3,F$6:F200)) ->  | J200: =(J199+G200)-(H200+I200) -> 16000
B201: =IF(F201="","",SUBTOTAL(3,F$6:F201)) ->  | J201: 16000
B202: =IF(F202="","",SUBTOTAL(3,F$6:F202)) ->  | J202: 16000
... 545 more rows

Sheet المستفيدين
C2: م | D2: الاسم | E2: تفاصيل
C3: =IF(D3="","",SUBTOTAL(3,D$3:D3)) -> 1 | D3: محمد
C4: =IF(D4="","",SUBTOTAL(3,D$3:D4)) -> 2 | D4: احمد
C5: =IF(D5="","",SUBTOTAL(3,D$3:D5)) -> 3 | D5: حسام
C6: =IF(D6="","",SUBTOTAL(3,D$3:D6)) -> 4 | D6: علي
C7: =IF(D7="","",SUBTOTAL(3,D$3:D7)) -> 
C8: =IF(D8="","",SUBTOTAL(3,D$3:D8)) -> 
C9: =IF(D9="","",SUBTOTAL(3,D$3:D9)) -> 
C10: =IF(D10="","",SUBTOTAL(3,D$3:D10)) -> 
C11: =IF(D11="","",SUBTOTAL(3,D$3:D11)) -> 
C12: =IF(D12="","",SUBTOTAL(3,D$3:D12)) -> 
C13: =IF(D13="","",SUBTOTAL(3,D$3:D13)) -> 
C14: =IF(D14="","",SUBTOTAL(3,D$3:D14)) -> 
C15: =IF(D15="","",SUBTOTAL(3,D$3:D15)) -> 
C16: =IF(D16="","",SUBTOTAL(3,D$3:D16)) -> 
C17: =IF(D17="","",SUBTOTAL(3,D$3:D17)) -> 
C18: =IF(D18="","",SUBTOTAL(3,D$3:D18)) -> 
C19: =IF(D19="","",SUBTOTAL(3,D$3:D19)) -> 
C20: =IF(D20="","",SUBTOTAL(3,D$3:D20)) -> 
C21: =IF(D21="","",SUBTOTAL(3,D$3:D21)) -> 
C22: =IF(D22="","",SUBTOTAL(3,D$3:D22)) -> 
C23: =IF(D23="","",SUBTOTAL(3,D$3:D23)) -> 
C24: =IF(D24="","",SUBTOTAL(3,D$3:D24)) -> 
C25: =IF(D25="","",SUBTOTAL(3,D$3:D25)) -> 
C26: =IF(D26="","",SUBTOTAL(3,D$3:D26)) -> 
C27: =IF(D27="","",SUBTOTAL(3,D$3:D27)) -> 
C28: =IF(D28="","",SUBTOTAL(3,D$3:D28)) -> 
C29: =IF(D29="","",SUBTOTAL(3,D$3:D29)) -> 
C30: =IF(D30="","",SUBTOTAL(3,D$3:D30)) -> 
C31: =IF(D31="","",SUBTOTAL(3,D$3:D31)) -> 
C32: =IF(D32="","",SUBTOTAL(3,D$3:D32)) -> 
C33: =IF(D33="","",SUBTOTAL(3,D$3:D33)) -> 
C34: =IF(D34="","",SUBTOTAL(3,D$3:D34)) -> 
C35: =IF(D35="","",SUBTOTAL(3,D$3:D35)) -> 
C36: =IF(D36="","",SUBTOTAL(3,D$3:D36)) -> 
C37: =IF(D37="","",SUBTOTAL(3,D$3:D37)) -> 
C38: =IF(D38="","",SUBTOTAL(3,D$3:D38)) -> 
C39: =IF(D39="","",SUBTOTAL(3,D$3:D39)) -> 
C40: =IF(D40="","",SUBTOTAL(3,D$3:D40)) -> 
C41: =IF(D41="","",SUBTOTAL(3,D$3:D41)) -> 
C42: =IF(D42="","",SUBTOTAL(3,D$3:D42)) -> 
C43: =IF(D43="","",SUBTOTAL(3,D$3:D43)) -> 
C44: =IF(D44="","",SUBTOTAL(3,D$3:D44)) -> 
C45: =IF(D45="","",SUBTOTAL(3,D$3:D45)) -> 
C46: =IF(D46="","",SUBTOTAL(3,D$3:D46)) -> 
C47: =IF(D47="","",SUBTOTAL(3,D$3:D47)) -> 
C48: =IF(D48="","",SUBTOTAL(3,D$3:D48)) -> 
C49: =IF(D49="","",SUBTOTAL(3,D$3:D49)) -> 
C50: =IF(D50="","",SUBTOTAL(3,D$3:D50)) -> 
C51: =IF(D51="","",SUBTOTAL(3,D$3:D51)) -> 
C52: =IF(D52="","",SUBTOTAL(3,D$3:D52)) -> 
C53: =IF(D53="","",SUBTOTAL(3,D$3:D53)) -> 
C54: =IF(D54="","",SUBTOTAL(3,D$3:D54)) -> 
C55: =IF(D55="","",SUBTOTAL(3,D$3:D55)) -> 
C56: =IF(D56="","",SUBTOTAL(3,D$3:D56)) -> 
C57: =IF(D57="","",SUBTOTAL(3,D$3:D57)) -> 
C58: =IF(D58="","",SUBTOTAL(3,D$3:D58)) -> 
C59: =IF(D59="","",SUBTOTAL(3,D$3:D59)) -> 
C60: =IF(D60="","",SUBTOTAL(3,D$3:D60)) -> 
C61: =IF(D61="","",SUBTOTAL(3,D$3:D61)) -> 
C62: =IF(D62="","",SUBTOTAL(3,D$3:D62)) -> 
C63: =IF(D63="","",SUBTOTAL(3,D$3:D63)) -> 
C64: =IF(D64="","",SUBTOTAL(3,D$3:D64)) -> 
C65: =IF(D65="","",SUBTOTAL(3,D$3:D65)) -> 
C66: =IF(D66="","",SUBTOTAL(3,D$3:D66)) -> 
C67: =IF(D67="","",SUBTOTAL(3,D$3:D67)) -> 
C68: =IF(D68="","",SUBTOTAL(3,D$3:D68)) -> 
C69: =IF(D69="","",SUBTOTAL(3,D$3:D69)) -> 
C70: =IF(D70="","",SUBTOTAL(3,D$3:D70)) -> 
C71: =IF(D71="","",SUBTOTAL(3,D$3:D71)) -> 
C72: =IF(D72="","",SUBTOTAL(3,D$3:D72)) -> 
C73: =IF(D73="","",SUBTOTAL(3,D$3:D73)) -> 
C74: =IF(D74="","",SUBTOTAL(3,D$3:D74)) -> 
C75: =IF(D75="","",SUBTOTAL(3,D$3:D75)) -> 
C76: =IF(D76="","",SUBTOTAL(3,D$3:D76)) -> 
C77: =IF(D77="","",SUBTOTAL(3,D$3:D77)) -> 
C78: =IF(D78="","",SUBTOTAL(3,D$3:D78)) -> 
C79: =IF(D79="","",SUBTOTAL(3,D$3:D79)) -> 
C80: =IF(D80="","",SUBTOTAL(3,D$3:D80)) -> 
C81: =IF(D81="","",SUBTOTAL(3,D$3:D81)) -> 
C82: =IF(D82="","",SUBTOTAL(3,D$3:D82)) -> 
C83: =IF(D83="","",SUBTOTAL(3,D$3:D83)) -> 
C84: =IF(D84="","",SUBTOTAL(3,D$3:D84)) -> 
C85: =IF(D85="","",SUBTOTAL(3,D$3:D85)) -> 
C86: =IF(D86="","",SUBTOTAL(3,D$3:D86)) -> 
C87: =IF(D87="","",SUBTOTAL(3,D$3:D87)) -> 
C88: =IF(D88="","",SUBTOTAL(3,D$3:D88)) -> 
C89: =IF(D89="","",SUBTOTAL(3,D$3:D89)) -> 
C90: =IF(D90="","",SUBTOTAL(3,D$3:D90)) -> 
C91: =IF(D91="","",SUBTOTAL(3,D$3:D91)) -> 
C92: =IF(D92="","",SUBTOTAL(3,D$3:D92)) -> 
C93: =IF(D93="","",SUBTOTAL(3,D$3:D93)) -> 
C94: =IF(D94="","",SUBTOTAL(3,D$3:D94)) -> 
C95: =IF(D95="","",SUBTOTAL(3,D$3:D95)) -> 
C96: =IF(D96="","",SUBTOTAL(3,D$3:D96)) -> 
C97: =IF(D97="","",SUBTOTAL(3,D$3:D97)) -> 
C98: =IF(D98="","",SUBTOTAL(3,D$3:D98)) -> 
C99: =IF(D99="","",SUBTOTAL(3,D$3:D99)) -> 
C100: =IF(D100="","",SUBTOTAL(3,D$3:D100)) -> 
C101: =IF(D101="","",SUBTOTAL(3,D$3:D101)) -> 
C102: =IF(D102="","",SUBTOTAL(3,D$3:D102)) -> 
C103: =IF(D103="","",SUBTOTAL(3,D$3:D103)) -> 
C104: =IF(D104="","",SUBTOTAL(3,D$3:D104)) -> 
C105: =IF(D105="","",SUBTOTAL(3,D$3:D105)) -> 
C106: =IF(D106="","",SUBTOTAL(3,D$3:D106)) -> 
C107: =IF(D107="","",SUBTOTAL(3,D$3:D107)) -> 
C108: =IF(D108="","",SUBTOTAL(3,D$3:D108)) -> 
C109: =IF(D109="","",SUBTOTAL(3,D$3:D109)) -> 
C110: =IF(D110="","",SUBTOTAL(3,D$3:D110)) -> 
C111: =IF(D111="","",SUBTOTAL(3,D$3:D111)) -> 
C112: =IF(D112="","",SUBTOTAL(3,D$3:D112)) -> 
C113: =IF(D113="","",SUBTOTAL(3,D$3:D113)) -> 
C114: =IF(D114="","",SUBTOTAL(3,D$3:D114)) -> 
C115: =IF(D115="","",SUBTOTAL(3,D$3:D115)) -> 
C116: =IF(D116="","",SUBTOTAL(3,D$3:D116)) -> 
C117: =IF(D117="","",SUBTOTAL(3,D$3:D117)) -> 
C118: =IF(D118="","",SUBTOTAL(3,D$3:D118)) -> 
C119: =IF(D119="","",SUBTOTAL(3,D$3:D119)) -> 
C120: =IF(D120="","",SUBTOTAL(3,D$3:D120)) -> 
C121: =IF(D121="","",SUBTOTAL(3,D$3:D121)) -> 
C122: =IF(D122="","",SUBTOTAL(3,D$3:D122)) -> 
C123: =IF(D123="","",SUBTOTAL(3,D$3:D123)) -> 
C124: =IF(D124="","",SUBTOTAL(3,D$3:D124)) -> 
C125: =IF(D125="","",SUBTOTAL(3,D$3:D125)) -> 
C126: =IF(D126="","",SUBTOTAL(3,D$3:D126)) -> 
C127: =IF(D127="","",SUBTOTAL(3,D$3:D127)) -> 
C128: =IF(D128="","",SUBTOTAL(3,D$3:D128)) -> 
C129: =IF(D129="","",SUBTOTAL(3,D$3:D129)) -> 
C130: =IF(D130="","",SUBTOTAL(3,D$3:D130)) -> 
C131: =IF(D131="","",SUBTOTAL(3,D$3:D131)) -> 
C132: =IF(D132="","",SUBTOTAL(3,D$3:D132)) -> 
C133: =IF(D133="","",SUBTOTAL(3,D$3:D133)) -> 
C134: =IF(D134="","",SUBTOTAL(3,D$3:D134)) -> 
C135: =IF(D135="","",SUBTOTAL(3,D$3:D135)) -> 
C136: =IF(D136="","",SUBTOTAL(3,D$3:D136)) -> 
C137: =IF(D137="","",SUBTOTAL(3,D$3:D137)) -> 
C138: =IF(D138="","",SUBTOTAL(3,D$3:D138)) -> 
C139: =IF(D139="","",SUBTOTAL(3,D$3:D139)) -> 
C140: =IF(D140="","",SUBTOTAL(3,D$3:D140)) -> 
C141: =IF(D141="","",SUBTOTAL(3,D$3:D141)) -> 
C142: =IF(D142="","",SUBTOTAL(3,D$3:D142)) -> 
C143: =IF(D143="","",SUBTOTAL(3,D$3:D143)) -> 
C144: =IF(D144="","",SUBTOTAL(3,D$3:D144)) -> 
C145: =IF(D145="","",SUBTOTAL(3,D$3:D145)) -> 
C146: =IF(D146="","",SUBTOTAL(3,D$3:D146)) -> 
C147: =IF(D147="","",SUBTOTAL(3,D$3:D147)) -> 
C148: =IF(D148="","",SUBTOTAL(3,D$3:D148)) -> 
C149: =IF(D149="","",SUBTOTAL(3,D$3:D149)) -> 
C150: =IF(D150="","",SUBTOTAL(3,D$3:D150)) -> 
C151: =IF(D151="","",SUBTOTAL(3,D$3:D151)) -> 
C152: =IF(D152="","",SUBTOTAL(3,D$3:D152)) -> 
C153: =IF(D153="","",SUBTOTAL(3,D$3:D153)) -> 
C156: =IF(D156="","",SUBTOTAL(3,D$3:D156)) -> 
C157: =IF(D157="","",SUBTOTAL(3,D$3:D157)) -> 
C158: =IF(D158="","",SUBTOTAL(3,D$3:D158)) -> 
C159: =IF(D159="","",SUBTOTAL(3,D$3:D159)) -> 
C160: =IF(D160="","",SUBTOTAL(3,D$3:D160)) -> 
C161: =IF(D161="","",SUBTOTAL(3,D$3:D161)) -> 
C162: =IF(D162="","",SUBTOTAL(3,D$3:D162)) -> 
C163: =IF(D163="","",SUBTOTAL(3,D$3:D163)) -> 
C164: =IF(D164="","",SUBTOTAL(3,D$3:D164)) -> 
C165: =IF(D165="","",SUBTOTAL(3,D$3:D165)) -> 
C166: =IF(D166="","",SUBTOTAL(3,D$3:D166)) -> 
C167: =IF(D167="","",SUBTOTAL(3,D$3:D167)) -> 
C168: =IF(D168="","",SUBTOTAL(3,D$3:D168)) -> 
C169: =IF(D169="","",SUBTOTAL(3,D$3:D169)) -> 
C170: =IF(D170="","",SUBTOTAL(3,D$3:D170)) -> 
C171: =IF(D171="","",SUBTOTAL(3,D$3:D171)) -> 
C172: =IF(D172="","",SUBTOTAL(3,D$3:D172)) -> 
C173: =IF(D173="","",SUBTOTAL(3,D$3:D173)) -> 
C174: =IF(D174="","",SUBTOTAL(3,D$3:D174)) -> 
C175: =IF(D175="","",SUBTOTAL(3,D$3:D175)) -> 
C176: =IF(D176="","",SUBTOTAL(3,D$3:D176)) -> 
C177: =IF(D177="","",SUBTOTAL(3,D$3:D177)) -> 
C178: =IF(D178="","",SUBTOTAL(3,D$3:D178)) -> 
C179: =IF(D179="","",SUBTOTAL(3,D$3:D179)) -> 
C180: =IF(D180="","",SUBTOTAL(3,D$3:D180)) -> 
C181: =IF(D181="","",SUBTOTAL(3,D$3:D181)) -> 
C182: =IF(D182="","",SUBTOTAL(3,D$3:D182)) -> 
C183: =IF(D183="","",SUBTOTAL(3,D$3:D183)) -> 
C184: =IF(D184="","",SUBTOTAL(3,D$3:D184)) -> 
C185: =IF(D185="","",SUBTOTAL(3,D$3:D185)) -> 
C186: =IF(D186="","",SUBTOTAL(3,D$3:D186)) -> 
C187: =IF(D187="","",SUBTOTAL(3,D$3:D187)) -> 
C188: =IF(D188="","",SUBTOTAL(3,D$3:D188)) -> 
C189: =IF(D189="","",SUBTOTAL(3,D$3:D189)) -> 
C190: =IF(D190="","",SUBTOTAL(3,D$3:D190)) -> 
C191: =IF(D191="","",SUBTOTAL(3,D$3:D191)) -> 
C192: =IF(D192="","",SUBTOTAL(3,D$3:D192)) -> 
C193: =IF(D193="","",SUBTOTAL(3,D$3:D193)) -> 
C194: =IF(D194="","",SUBTOTAL(3,D$3:D194)) -> 
C195: =IF(D195="","",SUBTOTAL(3,D$3:D195)) -> 
C196: =IF(D196="","",SUBTOTAL(3,D$3:D196)) -> 
C197: =IF(D197="","",SUBTOTAL(3,D$3:D197)) -> 
C198: =IF(D198="","",SUBTOTAL(3,D$3:D198)) -> 
C199: =IF(D199="","",SUBTOTAL(3,D$3:D199)) -> 
C200: =IF(D200="","",SUBTOTAL(3,D$3:D200)) -> 
C201: =IF(D201="","",SUBTOTAL(3,D$3:D201)) -> 
C202: =IF(D202="","",SUBTOTAL(3,D$3:D202)) -> 
C203: =IF(D203="","",SUBTOTAL(3,D$3:D203)) -> 
... 57 more rows

Sheet Dates
J1: التاريخ | K1: التاريخ | L1: المستفيد | M1: البيان
L2: حسام
J3: =IF(SUM($A$8)>999,CONCATENATE(">=",SUM($A$8)),"") ->  | K3: =IF(SUM($B$8)>999,CONCATENATE("<=",SUM(B8)),"") ->  | L3: =IF(LEN($C$8)>0,$C$8,"") -> حسام | M3: =IF(LEN($E$8)>1,TRIM(CONCATENATE("*",$E$8,"*")),"") -> 
J5: الأفضل: | K5: إخفاء هذه الاعمدة
A6: =MIN(DATA!$C$5:$C$9999) -> 2021-01-01 | B6: =MAX(DATA!$C$5:$C$9999) -> 2021-10-14
A7: From | B7: To | C7: المستفيد | E7: البيان | F7: =SUM(F11:F606) -> 0 | G7: =SUM(G11:G606) -> 3000 | H7: =SUM(H11:H606) -> 24000 | I7: =L601 -> 0
C8: حسام | F8: =(G7/F7) -> 
A10: م | B10: رقم الشيك | C10: رقم الشيك | D10: المستفيد | E10: البيان | F10: وارد | G10: منصرف | H10: لم يصرف | I10: الرصيد
A11: =IF(E11="","",SUBTOTAL(3,E$11:E11)) -> 1 | B11: 3 | C11: 3 | D11: حسام | E11: ضريبه | G11: 500 | I11: =F11-(G11+H11) -> -500
A12: =IF(E12="","",SUBTOTAL(3,E$11:E12)) -> 2 | B12: 7 | C12: 7 | D12: حسام | E12: تجربه | H12: 4000 | I12: =(I11+F12)-(G12-H12) -> 3500
A13: =IF(E13="","",SUBTOTAL(3,E$11:E13)) -> 3 | B13: 3 | C13: 3 | D13: حسام | E13: ضريبه | G13: 500 | I13: =(I12+F13)-(G13-H13) -> 3000
A14: =IF(E14="","",SUBTOTAL(3,E$11:E14)) -> 4 | B14: 7 | C14: 7 | D14: حسام | E14: تجربه | H14: 4000 | I14: 7000
A15: =IF(E15="","",SUBTOTAL(3,E$11:E15)) -> 5 | B15: 3 | C15: 3 | D15: حسام | E15: ضريبه | G15: 500 | I15: 6500
A16: =IF(E16="","",SUBTOTAL(3,E$11:E16)) -> 6 | B16: 7 | C16: 7 | D16: حسام | E16: تجربه | H16: 4000 | I16: 10500
A17: =IF(E17="","",SUBTOTAL(3,E$11:E17)) -> 7 | B17: 3 | C17: 3 | D17: حسام | E17: ضريبه | G17: 500 | I17: 10000
A18: =IF(E18="","",SUBTOTAL(3,E$11:E18)) -> 8 | B18: 7 | C18: 7 | D18: حسام | E18: تجربه | H18: 4000 | I18: 14000
A19: =IF(E19="","",SUBTOTAL(3,E$11:E19)) -> 9 | B19: 3 | C19: 3 | D19: حسام | E19: ضريبه | G19: 500 | I19: 13500
A20: =IF(E20="","",SUBTOTAL(3,E$11:E20)) -> 10 | B20: 7 | C20: 7 | D20: حسام | E20: تجربه | H20: 4000 | I20: 17500
A21: =IF(E21="","",SUBTOTAL(3,E$11:E21)) -> 11 | B21: 3 | C21: 3 | D21: حسام | E21: ضريبه | G21: 500 | I21: 17000
A22: =IF(E22="","",SUBTOTAL(3,E$11:E22)) -> 12 | B22: 7 | C22: 7 | D22: حسام | E22: تجربه | H22: 4000 | I22: 21000
A23: =IF(E23="","",SUBTOTAL(3,E$11:E23)) ->  | I23: 21000
A24: =IF(E24="","",SUBTOTAL(3,E$11:E24)) ->  | I24: 21000
A25: =IF(E25="","",SUBTOTAL(3,E$11:E25)) ->  | I25: 21000
A26: =IF(E26="","",SUBTOTAL(3,E$11:E26)) ->  | I26: 21000
A27: =IF(E27="","",SUBTOTAL(3,E$11:E27)) ->  | I27: 21000
A28: =IF(E28="","",SUBTOTAL(3,E$11:E28)) ->  | I28: 21000
A29: =IF(E29="","",SUBTOTAL(3,E$11:E29)) ->  | I29: 21000
A30: =IF(E30="","",SUBTOTAL(3,E$11:E30)) ->  | I30: 21000
A31: =IF(E31="","",SUBTOTAL(3,E$11:E31)) ->  | I31: 21000
A32: =IF(E32="","",SUBTOTAL(3,E$11:E32)) ->  | I32: 21000
A33: =IF(E33="","",SUBTOTAL(3,E$11:E33)) ->  | I33: 21000
A34: =IF(E34="","",SUBTOTAL(3,E$11:E34)) ->  | I34: 21000
A35: =IF(E35="","",SUBTOTAL(3,E$11:E35)) ->  | I35: 21000
A36: =IF(E36="","",SUBTOTAL(3,E$11:E36)) ->  | I36: 21000
A37: =IF(E37="","",SUBTOTAL(3,E$11:E37)) ->  | I37: 21000
A38: =IF(E38="","",SUBTOTAL(3,E$11:E38)) ->  | I38: 21000
A39: =IF(E39="","",SUBTOTAL(3,E$11:E39)) ->  | I39: 21000
A40: =IF(E40="","",SUBTOTAL(3,E$11:E40)) ->  | I40: 21000
A41: =IF(E41="","",SUBTOTAL(3,E$11:E41)) ->  | I41: 21000
A42: =IF(E42="","",SUBTOTAL(3,E$11:E42)) ->  | I42: 21000
A43: =IF(E43="","",SUBTOTAL(3,E$11:E43)) ->  | I43: 21000
A44: =IF(E44="","",SUBTOTAL(3,E$11:E44)) ->  | I44: 21000
A45: =IF(E45="","",SUBTOTAL(3,E$11:E45)) ->  | I45: 21000
A46: =IF(E46="","",SUBTOTAL(3,E$11:E46)) ->  | I46: 21000
A47: =IF(E47="","",SUBTOTAL(3,E$11:E47)) ->  | I47: 21000
A48: =IF(E48="","",SUBTOTAL(3,E$11:E48)) ->  | I48: 21000
A49: =IF(E49="","",SUBTOTAL(3,E$11:E49)) ->  | I49: 21000
A50: =IF(E50="","",SUBTOTAL(3,E$11:E50)) ->  | I50: 21000
A51: =IF(E51="","",SUBTOTAL(3,E$11:E51)) ->  | I51: 21000
A52: =IF(E52="","",SUBTOTAL(3,E$11:E52)) ->  | I52: 21000
A53: =IF(E53="","",SUBTOTAL(3,E$11:E53)) ->  | I53: 21000
A54: =IF(E54="","",SUBTOTAL(3,E$11:E54)) ->  | I54: 21000
A55: =IF(E55="","",SUBTOTAL(3,E$11:E55)) ->  | I55: 21000
A56: =IF(E56="","",SUBTOTAL(3,E$11:E56)) ->  | I56: 21000
A57: =IF(E57="","",SUBTOTAL(3,E$11:E57)) ->  | I57: 21000
A58: =IF(E58="","",SUBTOTAL(3,E$11:E58)) ->  | I58: 21000
A59: =IF(E59="","",SUBTOTAL(3,E$11:E59)) ->  | I59: 21000
A60: =IF(E60="","",SUBTOTAL(3,E$11:E60)) ->  | I60: 21000
A61: =IF(E61="","",SUBTOTAL(3,E$11:E61)) ->  | I61: 21000
A62: =IF(E62="","",SUBTOTAL(3,E$11:E62)) ->  | I62: 21000
A63: =IF(E63="","",SUBTOTAL(3,E$11:E63)) ->  | I63: 21000
A64: =IF(E64="","",SUBTOTAL(3,E$11:E64)) ->  | I64: 21000
A65: =IF(E65="","",SUBTOTAL(3,E$11:E65)) ->  | I65: 21000
A66: =IF(E66="","",SUBTOTAL(3,E$11:E66)) ->  | I66: 21000
A67: =IF(E67="","",SUBTOTAL(3,E$11:E67)) ->  | I67: 21000
A68: =IF(E68="","",SUBTOTAL(3,E$11:E68)) ->  | I68: 21000
A69: =IF(E69="","",SUBTOTAL(3,E$11:E69)) ->  | I69: 21000
A70: =IF(E70="","",SUBTOTAL(3,E$11:E70)) ->  | I70: 21000
A71: =IF(E71="","",SUBTOTAL(3,E$11:E71)) ->  | I71: 21000
A72: =IF(E72="","",SUBTOTAL(3,E$11:E72)) ->  | I72: 21000
A73: =IF(E73="","",SUBTOTAL(3,E$11:E73)) ->  | I73: 21000
A74: =IF(E74="","",SUBTOTAL(3,E$11:E74)) ->  | I74: 21000
A75: =IF(E75="","",SUBTOTAL(3,E$11:E75)) ->  | I75: 21000
A76: =IF(E76="","",SUBTOTAL(3,E$11:E76)) ->  | I76: 21000
A77: =IF(E77="","",SUBTOTAL(3,E$11:E77)) ->  | I77: =(I76+F77)-(G77-H77) -> 21000
A78: =IF(E78="","",SUBTOTAL(3,E$11:E78)) ->  | I78: 21000
A79: =IF(E79="","",SUBTOTAL(3,E$11:E79)) ->  | I79: 21000
A80: =IF(E80="","",SUBTOTAL(3,E$11:E80)) ->  | I80: 21000
A81: =IF(E81="","",SUBTOTAL(3,E$11:E81)) ->  | I81: 21000
A82: =IF(E82="","",SUBTOTAL(3,E$11:E82)) ->  | I82: 21000
A83: =IF(E83="","",SUBTOTAL(3,E$11:E83)) ->  | I83: 21000
A84: =IF(E84="","",SUBTOTAL(3,E$11:E84)) ->  | I84: 21000
A85: =IF(E85="","",SUBTOTAL(3,E$11:E85)) ->  | I85: 21000
A86: =IF(E86="","",SUBTOTAL(3,E$11:E86)) ->  | I86: 21000
A87: =IF(E87="","",SUBTOTAL(3,E$11:E87)) ->  | I87: 21000
A88: =IF(E88="","",SUBTOTAL(3,E$11:E88)) ->  | I88: 21000
A89: =IF(E89="","",SUBTOTAL(3,E$11:E89)) ->  | I89: 21000
A90: =IF(E90="","",SUBTOTAL(3,E$11:E90)) ->  | I90: 21000
A91: =IF(E91="","",SUBTOTAL(3,E$11:E91)) ->  | I91: 21000
A92: =IF(E92="","",SUBTOTAL(3,E$11:E92)) ->  | I92: 21000
I93: 21000
I94: 21000
I95: 21000
I96: 21000
I97: 21000
I98: 21000
I99: 21000
I100: 21000
